[Event "Early-Titled-Tuesday-Blitz-January-30-2024"]
[Site "Chess.com"]
[Date "2024.01.30"]
[Round "7"]
[White "Kotofeyca"]
[Black "BeardedNM"]
[Result "1-0"]
[WhiteElo "2378"]
[BlackElo "2195"]
[TimeControl "180+1"]
[EndTime "9:19:57 PST"]
[Termination "Kotofeyca won on time"]

1. d4 {[%clk 0:03:00.9]} 1... e6 {[%clk 0:03:00.1]} 2. c4 {[%clk 0:03:01.1]}
2... Nf6 {[%clk 0:03:00]} 3. Nf3 {[%clk 0:03:00.9]} 3... d5 {[%clk 0:03:00.5]}
4. cxd5 {[%clk 0:03:00.1]} 4... exd5 {[%clk 0:03:00.8]} 5. Nc3 {[%clk
0:03:00.3]} 5... c6 {[%clk 0:03:01.4]} 6. Bg5 {[%clk 0:03:00.4]} 6... Be7 {[%clk
0:03:02]} 7. Qc2 {[%clk 0:03:00.7]} 7... O-O {[%clk 0:02:59.9]} 8. e3 {[%clk
0:03:00.8]} 8... Nbd7 {[%clk 0:02:59.6]} 9. Bd3 {[%clk 0:03:01]} 9... Re8 {[%clk
0:03:00.1]} 10. O-O {[%clk 0:03:00.8]} 10... Nf8 {[%clk 0:03:00.7]} 11. Rab1
{[%clk 0:03:01]} 11... a5 {[%clk 0:02:57.9]} 12. a3 {[%clk 0:03:00.8]} 12... Ng6
{[%clk 0:02:54]} 13. b4 {[%clk 0:03:00.7]} 13... Bd6 {[%clk 0:02:54.2]} 14. bxa5
{[%clk 0:02:14.9]} 14... Rxa5 {[%clk 0:02:41.6]} 15. a4 {[%clk 0:02:14.2]} 15...
h6 {[%clk 0:02:39.3]} 16. Bxg6 {[%clk 0:02:08]} 16... fxg6 {[%clk 0:02:05.5]}
17. Bxf6 {[%clk 0:02:06.4]} 17... Qxf6 {[%clk 0:02:03.4]} 18. e4 {[%clk
0:01:25.6]} 18... dxe4 {[%clk 0:01:03.5]} 19. Nxe4 {[%clk 0:01:26.5]} 19... Qf4
{[%clk 0:00:35]} 20. Nxd6 {[%clk 0:01:05.7]} 20... Qxd6 {[%clk 0:00:35.1]} 21.
Rfe1 {[%clk 0:00:59.3]} 21... Rf8 {[%clk 0:00:20.5]} 22. Ne5 {[%clk 0:00:54]}
22... Bf5 {[%clk 0:00:19.7]} 23. Qb3+ {[%clk 0:00:49.9]} 23... Qd5 {[%clk
0:00:20]} 24. Qb4 {[%clk 0:00:42.4]} 24... Bxb1 {[%clk 0:00:17.8]} 25. Rxb1
{[%clk 0:00:39.3]} 25... Rd8 {[%clk 0:00:16.2]} 26. g3 {[%clk 0:00:30.3]} 26...
Ra7 {[%clk 0:00:12.9]} 27. Nxg6 {[%clk 0:00:29.8]} 27... Qxd4 {[%clk 0:00:12.2]}
28. Qb3+ {[%clk 0:00:24]} 28... Kh7 {[%clk 0:00:11.4]} 29. Nf4 {[%clk
0:00:23.3]} 29... Qe4 {[%clk 0:00:09]} 30. Rc1 {[%clk 0:00:20.1]} 30... Rxa4
{[%clk 0:00:08.7]} 31. Qxb7 {[%clk 0:00:19.9]} 31... Rad4 {[%clk 0:00:08]} 32.
Rf1 {[%clk 0:00:18]} 32... Rd1 {[%clk 0:00:07.9]} 33. Qa6 {[%clk 0:00:17.6]}
33... Rxf1+ {[%clk 0:00:07.3]} 34. Qxf1 {[%clk 0:00:18.5]} 34... c5 {[%clk
0:00:07.1]} 35. Qc1 {[%clk 0:00:16.7]} 35... c4 {[%clk 0:00:07]} 36. Ng2 {[%clk
0:00:16.5]} 36... Rd3 {[%clk 0:00:05.7]} 37. Ne3 {[%clk 0:00:17.1]} 37... Rxe3
{[%clk 0:00:05.2]} 38. fxe3 {[%clk 0:00:15.7]} 38... Qd3 {[%clk 0:00:05.4]} 39.
Kf2 {[%clk 0:00:15.4]} 39... c3 {[%clk 0:00:05.9]} 40. Qa3 {[%clk 0:00:13.5]}
40... Qd2+ {[%clk 0:00:05.4]} 41. Kf3 {[%clk 0:00:14]} 41... Qd1+ {[%clk
0:00:04.9]} 42. Kf4 {[%clk 0:00:12.7]} 42... Qd3 {[%clk 0:00:04.1]} 43. Qb3
{[%clk 0:00:11.7]} 43... Qd2 {[%clk 0:00:03.1]} 44. Qe6 {[%clk 0:00:09.4]} 44...
Qf2+ {[%clk 0:00:02.7]} 45. Kg4 {[%clk 0:00:08.9]} 45... c2 {[%clk 0:00:02.1]}
46. Qe4+ {[%clk 0:00:08.2]} 46... Kg8 {[%clk 0:00:02.3]} 47. Qe8+ {[%clk
0:00:08.3]} 47... Qf8 {[%clk 0:00:01.9]} 48. Qe6+ {[%clk 0:00:08.4]} 48... Qf7
{[%clk 0:00:01.8]} 49. Qc8+ {[%clk 0:00:08.5]} 49... Kh7 {[%clk 0:00:01.8]} 50.
Qxc2+ {[%clk 0:00:09.4]} 50... Qg6+ {[%clk 0:00:01.9]} 51. Qxg6+ {[%clk
0:00:09.3]} 51... Kxg6 {[%clk 0:00:02.8]} 52. Kf4 {[%clk 0:00:09.6]} 52... Kf6
{[%clk 0:00:03.1]} 53. h4 {[%clk 0:00:10.2]} 53... g5+ {[%clk 0:00:03.1]} 54.
hxg5+ {[%clk 0:00:10]} 54... hxg5+ {[%clk 0:00:04]} 55. Kg4 {[%clk 0:00:10.4]}
55... Kg6 {[%clk 0:00:04.5]} 56. e4 {[%clk 0:00:10.5]} 56... Kh6 {[%clk
0:00:04.3]} 57. Kf5 {[%clk 0:00:10.3]} 1-0

[Event "Early-Titled-Tuesday-Blitz-January-30-2024"]
[Site "Chess.com"]
[Date "2024.01.30"]
[Round "7"]
[White "ContrVersia"]
[Black "Trojan-Knight"]
[Result "1-0"]
[WhiteElo "2848"]
[BlackElo "2668"]
[TimeControl "180+1"]
[EndTime "9:20:02 PST"]
[Termination "ContrVersia won by resignation"]

1. Nf3 {[%clk 0:03:00.9]} 1... Nf6 {[%clk 0:03:00]} 2. c4 {[%clk 0:03:01.4]}
2... g6 {[%clk 0:02:59.4]} 3. g3 {[%clk 0:03:01.7]} 3... Bg7 {[%clk 0:02:59.8]}
4. Bg2 {[%clk 0:03:02.3]} 4... d5 {[%clk 0:02:59.4]} 5. cxd5 {[%clk 0:03:01.6]}
5... Nxd5 {[%clk 0:02:59.9]} 6. d4 {[%clk 0:03:02]} 6... Nb6 {[%clk 0:02:57.7]}
7. O-O {[%clk 0:03:01.8]} 7... Nc6 {[%clk 0:02:58]} 8. e3 {[%clk 0:03:02.1]}
8... O-O {[%clk 0:02:57.7]} 9. Nc3 {[%clk 0:03:00.9]} 9... Re8 {[%clk
0:02:57.7]} 10. Re1 {[%clk 0:03:01]} 10... a5 {[%clk 0:02:57.7]} 11. h3 {[%clk
0:03:00.7]} 11... a4 {[%clk 0:02:58]} 12. Qe2 {[%clk 0:03:00.9]} 12... e5 {[%clk
0:02:57.3]} 13. dxe5 {[%clk 0:03:00.3]} 13... Nxe5 {[%clk 0:02:58.2]} 14. Nxe5
{[%clk 0:03:00.9]} 14... Bxe5 {[%clk 0:02:58.1]} 15. e4 {[%clk 0:03:01.4]} 15...
a3 {[%clk 0:02:57.9]} 16. Rd1 {[%clk 0:02:56.7]} 16... Qe7 {[%clk 0:02:57.3]}
17. Rb1 {[%clk 0:02:16.1]} 17... Be6 {[%clk 0:02:43.1]} 18. f4 {[%clk
0:01:35.2]} 18... axb2 {[%clk 0:02:16]} 19. Bxb2 {[%clk 0:01:36.1]} 19... Qc5+
{[%clk 0:02:14.8]} 20. Qf2 {[%clk 0:01:36.4]} 20... Qxf2+ {[%clk 0:02:08.3]} 21.
Kxf2 {[%clk 0:01:37.3]} 21... Bxc3 {[%clk 0:02:08.6]} 22. Bxc3 {[%clk
0:01:38.2]} 22... Rxa2+ {[%clk 0:02:08.6]} 23. Rd2 {[%clk 0:01:36.7]} 23... Rea8
{[%clk 0:02:01]} 24. Rxa2 {[%clk 0:01:24.5]} 24... Rxa2+ {[%clk 0:02:00.5]} 25.
Kg1 {[%clk 0:01:25.4]} 25... f5 {[%clk 0:01:35.1]} 26. Rd1 {[%clk 0:01:13.1]}
26... c6 {[%clk 0:01:22.4]} 27. Rb1 {[%clk 0:01:09.8]} 27... Na4 {[%clk
0:00:58.8]} 28. Be5 {[%clk 0:00:57]} 28... b5 {[%clk 0:00:50.2]} 29. exf5 {[%clk
0:00:52.1]} 29... Bxf5 {[%clk 0:00:48.1]} 30. Rc1 {[%clk 0:00:38.7]} 30... Rxg2+
{[%clk 0:00:27.1]} 31. Kxg2 {[%clk 0:00:37.4]} 31... b4 {[%clk 0:00:20.3]} 32.
Kf2 {[%clk 0:00:24.8]} 32... b3 {[%clk 0:00:19.2]} 33. Rxc6 {[%clk 0:00:24.2]}
33... b2 {[%clk 0:00:17.9]} 34. Bxb2 {[%clk 0:00:19.9]} 34... Nxb2 {[%clk
0:00:18.8]} 35. g4 {[%clk 0:00:19.8]} 35... Bd7 {[%clk 0:00:15.6]} 36. Rd6
{[%clk 0:00:18.1]} 36... Be8 {[%clk 0:00:15.3]} 37. Rd4 {[%clk 0:00:18]} 37...
Na4 {[%clk 0:00:14.8]} 38. Ke3 {[%clk 0:00:18.6]} 38... Nc5 {[%clk 0:00:13.2]}
39. Rd6 {[%clk 0:00:17.4]} 39... Kf7 {[%clk 0:00:10]} 40. Kd4 {[%clk 0:00:17.9]}
40... Ne6+ {[%clk 0:00:09.7]} 41. Ke5 {[%clk 0:00:18.4]} 41... Nf8 {[%clk
0:00:08.7]} 42. Rf6+ {[%clk 0:00:17.4]} 42... Kg7 {[%clk 0:00:08.2]} 43. Ra6
{[%clk 0:00:16.8]} 43... Kf7 {[%clk 0:00:08]} 44. Ra7+ {[%clk 0:00:16.6]} 44...
Kg8 {[%clk 0:00:07.2]} 45. Ra8 {[%clk 0:00:11.6]} 45... Kf7 {[%clk 0:00:06.9]}
46. Kd6 {[%clk 0:00:11.1]} 46... Bb5 {[%clk 0:00:05]} 47. Ra7+ {[%clk
0:00:10.4]} 47... Kf6 {[%clk 0:00:04.8]} 48. g5+ {[%clk 0:00:09.5]} 48... Kf5
{[%clk 0:00:04.2]} 49. Rf7+ {[%clk 0:00:10.1]} 49... Ke4 {[%clk 0:00:04.7]} 50.
Rxf8 {[%clk 0:00:10.7]} 50... Bf1 {[%clk 0:00:04.6]} 51. h4 {[%clk 0:00:10.9]}
51... Be2 {[%clk 0:00:04.9]} 52. Rf7 {[%clk 0:00:10.9]} 52... Bh5 {[%clk
0:00:04.3]} 53. Ke6 {[%clk 0:00:08.7]} 53... Bg4+ {[%clk 0:00:03]} 54. Kf6
{[%clk 0:00:09.1]} 54... Bf5 {[%clk 0:00:03.5]} 55. Rxh7 {[%clk 0:00:08.6]}
55... Kxf4 {[%clk 0:00:04.4]} 56. h5 {[%clk 0:00:08.4]} 56... gxh5 {[%clk
0:00:03.1]} 57. Rxh5 {[%clk 0:00:09.3]} 57... Kg4 {[%clk 0:00:03.1]} 58. Rh1
{[%clk 0:00:07.4]} 1-0

[Event "Early-Titled-Tuesday-Blitz-January-30-2024"]
[Site "Chess.com"]
[Date "2024.01.30"]
[Round "7"]
[White "GMKrikor"]
[Black "Anton_Demchenko"]
[Result "1-0"]
[WhiteElo "2821"]
[BlackElo "2938"]
[TimeControl "180+1"]
[EndTime "9:20:03 PST"]
[Termination "GMKrikor won by resignation"]

1. Nf3 {[%clk 0:03:00.9]} 1... Nf6 {[%clk 0:03:00.3]} 2. c4 {[%clk 0:03:01.2]}
2... g6 {[%clk 0:03:00.9]} 3. Nc3 {[%clk 0:03:01.8]} 3... Bg7 {[%clk 0:03:00.9]}
4. e4 {[%clk 0:03:02.5]} 4... O-O {[%clk 0:03:01.7]} 5. d4 {[%clk 0:03:03.2]}
5... d6 {[%clk 0:03:02.2]} 6. h3 {[%clk 0:03:03.7]} 6... e5 {[%clk 0:03:02.2]}
7. d5 {[%clk 0:03:04.3]} 7... a5 {[%clk 0:03:02.6]} 8. g4 {[%clk 0:03:04]} 8...
Na6 {[%clk 0:03:02.9]} 9. Be3 {[%clk 0:03:04.3]} 9... Nc5 {[%clk 0:03:03.2]} 10.
Nd2 {[%clk 0:03:04.2]} 10... Bd7 {[%clk 0:03:00]} 11. Be2 {[%clk 0:03:03.1]}
11... a4 {[%clk 0:03:00.4]} 12. h4 {[%clk 0:02:55.6]} 12... c6 {[%clk 0:02:59]}
13. a3 {[%clk 0:02:46.8]} 13... Ne8 {[%clk 0:02:49.5]} 14. h5 {[%clk 0:02:38.4]}
14... cxd5 {[%clk 0:02:40.6]} 15. cxd5 {[%clk 0:02:35.1]} 15... Nc7 {[%clk
0:02:39.6]} 16. Rg1 {[%clk 0:02:22.1]} 16... b5 {[%clk 0:02:27.9]} 17. Rc1
{[%clk 0:01:46.6]} 17... Rb8 {[%clk 0:02:26.6]} 18. g5 {[%clk 0:01:22.5]} 18...
N7a6 {[%clk 0:02:25.8]} 19. h6 {[%clk 0:01:17.6]} 19... Bh8 {[%clk 0:02:25.5]}
20. Rg3 {[%clk 0:00:57.5]} 20... f6 {[%clk 0:02:21.7]} 21. Kf1 {[%clk
0:00:45.7]} 21... fxg5 {[%clk 0:02:21.3]} 22. Bxg5 {[%clk 0:00:45.6]} 22... Bf6
{[%clk 0:02:21.2]} 23. Nf3 {[%clk 0:00:42.9]} 23... b4 {[%clk 0:02:13.2]} 24.
axb4 {[%clk 0:00:41.7]} 24... Nxb4 {[%clk 0:02:12.6]} 25. Bc4 {[%clk 0:00:24.5]}
25... Kh8 {[%clk 0:01:44.2]} 26. Qe2 {[%clk 0:00:23.7]} 26... Qe7 {[%clk
0:01:38.4]} 27. Kg2 {[%clk 0:00:23.3]} 27... Rf7 {[%clk 0:01:37.9]} 28. Bxf6+
{[%clk 0:00:21]} 28... Rxf6 {[%clk 0:01:38.4]} 29. Ng5 {[%clk 0:00:19.9]} 29...
Rbf8 {[%clk 0:01:39]} 30. f3 {[%clk 0:00:16]} 30... Rf4 {[%clk 0:01:28.8]} 31.
Rh1 {[%clk 0:00:15.4]} 31... Rb8 {[%clk 0:01:26.1]} 32. Qd2 {[%clk 0:00:14.2]}
32... Rff8 {[%clk 0:01:18.7]} 33. Rf1 {[%clk 0:00:11.8]} 33... Qf6 {[%clk
0:01:15.2]} 34. Ne2 {[%clk 0:00:10.4]} 34... Qe7 {[%clk 0:00:50.6]} 35. f4
{[%clk 0:00:10.4]} 35... Rbe8 {[%clk 0:00:42.5]} 36. Qxb4 {[%clk 0:00:07.2]}
36... exf4 {[%clk 0:00:42.8]} 37. Rxf4 {[%clk 0:00:07.6]} 37... Rxf4 {[%clk
0:00:42.4]} 38. Nxf4 {[%clk 0:00:08.5]} 38... Kg8 {[%clk 0:00:41.3]} 39. Qc3
{[%clk 0:00:08.6]} 39... Nxe4 {[%clk 0:00:39.4]} 40. Nxe4 {[%clk 0:00:08.2]}
40... Qxe4+ {[%clk 0:00:40.1]} 41. Rf3 {[%clk 0:00:08.9]} 41... Re5 {[%clk
0:00:39.5]} 42. Bd3 {[%clk 0:00:08.6]} 42... Qe1 {[%clk 0:00:29.1]} 43. Qxe1
{[%clk 0:00:08.4]} 43... Rxe1 {[%clk 0:00:30]} 44. Rf2 {[%clk 0:00:06.6]} 44...
Rd1 {[%clk 0:00:20.7]} 45. Bc2 {[%clk 0:00:07.2]} 45... Re1 {[%clk 0:00:15.9]}
46. Ne6 {[%clk 0:00:07.1]} 46... Bxe6 {[%clk 0:00:15.4]} 47. dxe6 {[%clk
0:00:08]} 47... Rxe6 {[%clk 0:00:13.2]} 48. Bxa4 {[%clk 0:00:08.2]} 48... d5
{[%clk 0:00:13.3]} 49. Bb3 {[%clk 0:00:07.9]} 49... Re5 {[%clk 0:00:12.9]} 50.
Rd2 {[%clk 0:00:08]} 50... Kf8 {[%clk 0:00:13.2]} 51. Bxd5 {[%clk 0:00:07.5]}
51... Rh5 {[%clk 0:00:12.6]} 52. b4 {[%clk 0:00:07.4]} 52... Rxh6 {[%clk
0:00:13.1]} 53. b5 {[%clk 0:00:08]} 53... Rh4 {[%clk 0:00:11.5]} 54. b6 {[%clk
0:00:08]} 54... Rb4 {[%clk 0:00:11.6]} 55. b7 {[%clk 0:00:08.7]} 55... Kg7
{[%clk 0:00:08.9]} 56. Ra2 {[%clk 0:00:08.1]} 56... h5 {[%clk 0:00:08.7]} 57.
Ra8 {[%clk 0:00:08]} 57... Rb2+ {[%clk 0:00:09]} 58. Kf3 {[%clk 0:00:08]} 58...
g5 {[%clk 0:00:09.9]} 59. b8=Q {[%clk 0:00:08.2]} 59... g4+ {[%clk 0:00:10.8]}
60. Kf4 {[%clk 0:00:08.5]} 60... Rxb8 {[%clk 0:00:11.1]} 61. Rxb8 {[%clk
0:00:08.5]} 1-0

[Event "Early-Titled-Tuesday-Blitz-January-30-2024"]
[Site "Chess.com"]
[Date "2024.01.30"]
[Round "7"]
[White "nihalsarin"]
[Black "Binary010"]
[Result "1-0"]
[WhiteElo "3172"]
[BlackElo "2912"]
[TimeControl "180+1"]
[EndTime "9:20:06 PST"]
[Termination "nihalsarin won on time"]

1. e4 {[%clk 0:01:21.1]} 1... e5 {[%clk 0:02:55.5]} 2. Nf3 {[%clk 0:01:20.7]}
2... Nf6 {[%clk 0:02:55.7]} 3. Nxe5 {[%clk 0:01:20.5]} 3... d6 {[%clk
0:02:55.8]} 4. Nf3 {[%clk 0:01:20.5]} 4... Nxe4 {[%clk 0:02:56.2]} 5. Nc3 {[%clk
0:01:21.4]} 5... Nxc3 {[%clk 0:02:55.3]} 6. dxc3 {[%clk 0:01:22.3]} 6... Be7
{[%clk 0:02:55.3]} 7. Be3 {[%clk 0:01:22.9]} 7... Nc6 {[%clk 0:02:54.3]} 8. Qd2
{[%clk 0:01:19.1]} 8... Bf5 {[%clk 0:02:52.8]} 9. O-O-O {[%clk 0:01:18.6]} 9...
Qd7 {[%clk 0:02:51.5]} 10. Bd3 {[%clk 0:01:19.3]} 10... Bxd3 {[%clk 0:02:35.8]}
11. Qxd3 {[%clk 0:01:20.2]} 11... a6 {[%clk 0:02:29.1]} 12. Rhe1 {[%clk
0:01:19.8]} 12... O-O-O {[%clk 0:02:26.5]} 13. Nd4 {[%clk 0:01:10.7]} 13... Bf6
{[%clk 0:02:25.7]} 14. Nxc6 {[%clk 0:00:55.7]} 14... Qxc6 {[%clk 0:02:25.9]} 15.
g4 {[%clk 0:00:54.8]} 15... h6 {[%clk 0:01:50.5]} 16. Bd4 {[%clk 0:00:54.6]}
16... Bxd4 {[%clk 0:01:33]} 17. Qxd4 {[%clk 0:00:55.5]} 17... f6 {[%clk
0:01:33.5]} 18. Re7 {[%clk 0:00:34.5]} 18... Rd7 {[%clk 0:01:25.3]} 19. Re3
{[%clk 0:00:29.9]} 19... Qc5 {[%clk 0:01:11.5]} 20. Qf4 {[%clk 0:00:19.7]} 20...
Qg5 {[%clk 0:01:05.7]} 21. Qf3 {[%clk 0:00:17.6]} 21... Re8 {[%clk 0:01:00.4]}
22. Re1 {[%clk 0:00:14]} 22... Rde7 {[%clk 0:00:44.4]} 23. Kd2 {[%clk
0:00:14.1]} 23... Rxe3 {[%clk 0:00:31.5]} 24. Rxe3 {[%clk 0:00:15]} 24... Rxe3
{[%clk 0:00:31.3]} 25. Qxe3 {[%clk 0:00:15.9]} 25... Qd5+ {[%clk 0:00:24.5]} 26.
Ke2 {[%clk 0:00:15.6]} 26... Kd7 {[%clk 0:00:23.5]} 27. b3 {[%clk 0:00:15.6]}
27... h5 {[%clk 0:00:20.6]} 28. c4 {[%clk 0:00:12.4]} 28... Qa5 {[%clk 0:00:18]}
29. Qh3 {[%clk 0:00:07.5]} 29... Kd8 {[%clk 0:00:12.6]} 30. Qxh5 {[%clk
0:00:06.4]} 30... Qxa2 {[%clk 0:00:12.8]} 31. Qh8+ {[%clk 0:00:06.5]} 31... Kd7
{[%clk 0:00:12.4]} 32. Qxg7+ {[%clk 0:00:07.4]} 32... Kc6 {[%clk 0:00:13.1]} 33.
Qg6 {[%clk 0:00:08]} 33... Qb2 {[%clk 0:00:11]} 34. Qe4+ {[%clk 0:00:08]} 34...
Kb6 {[%clk 0:00:09.1]} 35. h4 {[%clk 0:00:08.6]} 35... c6 {[%clk 0:00:08.1]} 36.
h5 {[%clk 0:00:09]} 36... d5 {[%clk 0:00:08.5]} 37. cxd5 {[%clk 0:00:09.9]}
37... cxd5 {[%clk 0:00:09.1]} 38. Qe3+ {[%clk 0:00:09.6]} 38... d4 {[%clk
0:00:08.5]} 39. Qe4 {[%clk 0:00:07.9]} 39... a5 {[%clk 0:00:04.9]} 40. h6 {[%clk
0:00:08.2]} 40... a4 {[%clk 0:00:05.5]} 41. bxa4 {[%clk 0:00:09.1]} 41... Qa2
{[%clk 0:00:05.1]} 42. Qxd4+ {[%clk 0:00:08.8]} 42... Ka6 {[%clk 0:00:05.4]} 43.
Qxf6+ {[%clk 0:00:08.8]} 43... Ka7 {[%clk 0:00:05.5]} 44. Qd4+ {[%clk
0:00:08.8]} 44... Ka8 {[%clk 0:00:05.2]} 45. h7 {[%clk 0:00:08.8]} 45... Qxc2+
{[%clk 0:00:05.7]} 46. Kf3 {[%clk 0:00:08.4]} 46... Qxh7 {[%clk 0:00:06.1]} 47.
Kg3 {[%clk 0:00:09]} 47... Qc7+ {[%clk 0:00:05.5]} 48. f4 {[%clk 0:00:09.7]}
48... Qc2 {[%clk 0:00:05.1]} 49. g5 {[%clk 0:00:08.7]} 49... Qb3+ {[%clk
0:00:05.3]} 50. Kh4 {[%clk 0:00:08.2]} 50... Qe6 {[%clk 0:00:04.8]} 51. Qe5
{[%clk 0:00:05.8]} 51... Qc4 {[%clk 0:00:04.2]} 52. g6 {[%clk 0:00:06.1]} 52...
Qf1 {[%clk 0:00:04]} 53. Kg5 {[%clk 0:00:06.4]} 53... Qg2+ {[%clk 0:00:04]} 54.
Kf6 {[%clk 0:00:06.9]} 54... Qc6+ {[%clk 0:00:04.6]} 55. Kf7 {[%clk 0:00:07.6]}
55... Qd7+ {[%clk 0:00:04.1]} 56. Kf8 {[%clk 0:00:06.7]} 56... Qxa4 {[%clk
0:00:02.2]} 57. Qe8+ {[%clk 0:00:06.6]} 1-0

[Event "Early-Titled-Tuesday-Blitz-January-30-2024"]
[Site "Chess.com"]
[Date "2024.01.30"]
[Round "7"]
[White "flomarechot"]
[Black "MathiasWomacka"]
[Result "0-1"]
[WhiteElo "2347"]
[BlackElo "2530"]
[TimeControl "180+1"]
[EndTime "9:20:06 PST"]
[Termination "MathiasWomacka won on time"]

1. Nf3 {[%clk 0:03:00.9]} 1... c5 {[%clk 0:02:57.7]} 2. b3 {[%clk 0:03:01.1]}
2... d6 {[%clk 0:02:56.9]} 3. d4 {[%clk 0:03:00.3]} 3... cxd4 {[%clk 0:02:54]}
4. Nxd4 {[%clk 0:03:00.8]} 4... e5 {[%clk 0:02:53.1]} 5. Nf3 {[%clk 0:02:44.5]}
5... Nc6 {[%clk 0:02:52.3]} 6. Bb2 {[%clk 0:02:44.2]} 6... Nf6 {[%clk
0:02:45.6]} 7. c4 {[%clk 0:02:44.2]} 7... d5 {[%clk 0:02:40.1]} 8. cxd5 {[%clk
0:02:16.7]} 8... Bb4+ {[%clk 0:02:20.3]} 9. Nc3 {[%clk 0:01:54.5]} 9... Nxd5
{[%clk 0:02:16.8]} 10. Rc1 {[%clk 0:01:50.6]} 10... Qa5 {[%clk 0:02:07.8]} 11.
Qd2 {[%clk 0:01:50.5]} 11... O-O {[%clk 0:01:47.8]} 12. e4 {[%clk 0:01:32.7]}
12... Nxc3 {[%clk 0:01:42.6]} 13. Bxc3 {[%clk 0:01:32.6]} 13... Bxc3 {[%clk
0:01:32.4]} 14. Qxc3 {[%clk 0:01:22.2]} 14... Qxc3+ {[%clk 0:01:30.2]} 15. Rxc3
{[%clk 0:01:21.9]} 15... Bg4 {[%clk 0:01:29.3]} 16. Bb5 {[%clk 0:01:13.9]} 16...
Bxf3 {[%clk 0:01:25.9]} 17. Bxc6 {[%clk 0:01:08.5]} 17... Bxg2 {[%clk 0:01:24]}
18. Rg1 {[%clk 0:01:08.8]} 18... Rac8 {[%clk 0:01:11.1]} 19. Rxg2 {[%clk
0:01:05.4]} 19... Rxc6 {[%clk 0:01:11.6]} 20. Rxc6 {[%clk 0:01:05]} 20... bxc6
{[%clk 0:01:12.4]} 21. Rg3 {[%clk 0:00:55.8]} 21... Rd8 {[%clk 0:01:10.3]} 22.
Rc3 {[%clk 0:00:55.2]} 22... Rd6 {[%clk 0:01:08.7]} 23. Rc5 {[%clk 0:00:55.2]}
23... f6 {[%clk 0:01:02.3]} 24. Ra5 {[%clk 0:00:55.1]} 24... Rd7 {[%clk
0:01:02.2]} 25. Ra6 {[%clk 0:00:45.6]} 25... Rc7 {[%clk 0:01:00]} 26. Kd2 {[%clk
0:00:41.3]} 26... Kf7 {[%clk 0:01:00.5]} 27. Kc3 {[%clk 0:00:41.6]} 27... Ke6
{[%clk 0:01:01]} 28. b4 {[%clk 0:00:40.3]} 28... Kd7 {[%clk 0:00:48.4]} 29. Kc4
{[%clk 0:00:36.7]} 29... Kc8 {[%clk 0:00:48.1]} 30. Ra3 {[%clk 0:00:19.3]} 30...
Kb7 {[%clk 0:00:48.3]} 31. Rd3 {[%clk 0:00:19.2]} 31... Kb6 {[%clk 0:00:47.1]}
32. a4 {[%clk 0:00:19]} 32... a5 {[%clk 0:00:44.7]} 33. Rd2 {[%clk 0:00:17.6]}
33... axb4 {[%clk 0:00:43.2]} 34. Kxb4 {[%clk 0:00:18.5]} 34... c5+ {[%clk
0:00:34.6]} 35. Kc4 {[%clk 0:00:19]} 35... Ka5 {[%clk 0:00:32.9]} 36. Rd6 {[%clk
0:00:18.2]} 36... h5 {[%clk 0:00:30.5]} 37. h4 {[%clk 0:00:18.1]} 37... Rb7
{[%clk 0:00:20.5]} 38. Kxc5 {[%clk 0:00:13.6]} 38... Rc7+ {[%clk 0:00:17.2]} 39.
Kd5 {[%clk 0:00:07.7]} 39... Kxa4 {[%clk 0:00:16.5]} 40. Ke6 {[%clk 0:00:06.7]}
40... Kb4 {[%clk 0:00:14.3]} 41. Rd8 {[%clk 0:00:05.3]} 41... Kc4 {[%clk
0:00:13.2]} 42. Rh8 {[%clk 0:00:05.3]} 42... Kd4 {[%clk 0:00:12.7]} 43. Rxh5
{[%clk 0:00:05.4]} 43... Kxe4 {[%clk 0:00:12.5]} 44. Rh7 {[%clk 0:00:03.2]}
44... Kf3 {[%clk 0:00:11.6]} 45. h5 {[%clk 0:00:03.6]} 45... Ra7 {[%clk
0:00:09.8]} 46. h6 {[%clk 0:00:03.8]} 46... Ra6+ {[%clk 0:00:09.1]} 47. Kf5
{[%clk 0:00:03.7]} 47... gxh6 {[%clk 0:00:07.5]} 48. Rxh6 {[%clk 0:00:04.6]}
48... Kxf2 {[%clk 0:00:07.6]} 49. Rh3 {[%clk 0:00:04.5]} 49... Ke2 {[%clk
0:00:05.3]} 50. Rh4 {[%clk 0:00:03.6]} 50... Ke3 {[%clk 0:00:05]} 51. Rh3+
{[%clk 0:00:03.8]} 51... Kd4 {[%clk 0:00:04.9]} 52. Rh1 {[%clk 0:00:03.7]} 52...
e4 {[%clk 0:00:03.2]} 53. Rd1+ {[%clk 0:00:03.8]} 53... Ke3 {[%clk 0:00:02.9]}
54. Re1+ {[%clk 0:00:04.3]} 54... Kf3 {[%clk 0:00:02.1]} 0-1